[Event "76th Montenegro Championship 2024"]
[Site "Podgorica"]
[Date "2024.02.11"]
[Round "7.15"]
[White "Vukovic, Krsto"]
[Black "Musovic, Armin"]
[Result "0-1"]
[ECO "B06"]
[WhiteElo "1904"]
[BlackElo "2268"]
[Annotator "TA"]
[PlyCount "74"]
[EventDate "2024.02.06"]
[EventType "swiss"]
[EventCountry "MNE"]
[SourceTitle "playchess.com"]
[Source "ChessBase"]
[SourceQuality "1"]
[TimeControl "40/5400+30:1800+30"]

{[%evp 9,74,-15,0,0,0,-56,-55,-56,-43,-45,-25,-39,-30,-34,-31,-62,-51,-59,-51,-50,-52,-93,-85,-137,-114,-157,-148,-154,-125,-132,-125,-115,-110,-160,-159,-161,-159,-250,-252,-262,-262,-262,-262,-290,-193,-263,-263,-280,-276,-272,-270,-250,-250,-475,-516,-3313,-3417,-2613,-2590,-2312,-1978,-6323,-6179,-6207,-6193,-6295,-6085]} 1. e4 {[%emt 1:31:00]} c6 {[%emt 0:01:28]} 2. d4 {[%emt 0:00:00]} g6 {[%emt 0:00:24]} 3. c4 {[%emt 0:00:00]} d5 {[%emt 0:00:18]} 4. Nc3 {[%emt 0:00:00]} dxe4 {[%emt 0:00:37]} 5. Nxe4 {[%emt 0:00:00]} Bg7 {[%emt 0:00:18][%cal Of7f5]} 6. Be3 {[%emt 0:00:00]} Nh6 {[%emt 0:01:54]} 7. Bxh6 {[%emt 0:00:00]} ({White should try} 7. Qd2 $11 Nf5 8. Nf3) 7... Bxh6 $15 {[%emt 0:00:05]} 8. Nf3 {[%emt 0:00:00] Black is slightly better.} Bg4 {[%emt 0:02:47]} 9. Be2 {[%emt 0:00:00]} Bxf3 {[%emt 0:00:19]} 10. Bxf3 {[%emt 0:00:00]} Bg7 {[%emt 0:00:10]} 11. Qb3 {[%emt 0:00:00]} Qb6 {[%emt 0:08:07]} (11... Bxd4 $2 {is the wrong capture.} 12. Qxb7 Nd7 13. Rd1 $16) 12. d5 {[%emt 0:00:00]} Bxb2 {[%emt 0:08:04]} 13. Rb1 {[%emt 0:00:00]} Qxb3 {[%emt 0:00:18]} 14. axb3 {[%emt 0:00:00]} Bd4 {[%emt 0:00:54]} 15. dxc6 {[%emt 0:00:00] Black converts the advantage convincingly.} Nxc6 {[%emt 0:00:28]} 16. Nd2 {[%emt 0:00:00]} (16. O-O $142) 16... O-O {[%emt 0:06:22]} 17. Bxc6 {[%emt 0:00:00]} bxc6 {[%emt 0:00:04]} 18. Ke2 {[%emt 0:00:00]} Rab8 {[%emt 0:00:37] Black is more active.} 19. Nf3 {[%emt 0:00:00]} Bf6 {[%emt 0:00:17]} 20. Rhd1 {[%emt 0:00:00]} Rb7 {[%emt 0:00:13]} 21. Nd4 {[%emt 0:00:00]} ({Better is} 21. Rd3) 21... Rc8 $17 {[%emt 0:01:14]} 22. Nf3 {[%emt 0:00:00]} Rcb8 {[%emt 0:01:05]} 23. Rd3 {[%emt 0:00:00]} (23. g4 $17) 23... a5 $19 {[%emt 0:01:33][%cal Ba7a5,Ba5a4,Ba4b3,Bb3b2][%mdl 32]} 24. Nd4 {[%emt 0:00:00]} Bxd4 {[%emt 0:01:38]} 25. Rxd4 {[%emt 0:00:00][%mdl 4096] Endgame. KRR-KRR} a4 {[%emt 0:00:23]} ({Resist} 25... Rxb3 26. Rxb3 Rxb3 27. Rd7 $19) 26. Rd3 {[%emt 0:00:00]} axb3 {[%emt 0:01:18]} 27. Kd2 {[%emt 0:00:00] [#]} (27. Rb2 $142) 27... b2 $1 {[%emt 0:00:42]} 28. Ra3 {[%emt 0:00:00]} Kg7 {[%emt 0:01:03]} 29. Kc2 {[%emt 0:00:00]} Kf6 {[%emt 0:01:53]} 30. Ra6 {[%emt 0:00:00] [#]} Rb6 {[%emt 0:00:07]} 31. Rxb6 {[%emt 0:00:00]} (31. Ra7) 31... Rxb6 {[%emt 0:00:04] Black is clearly winning.} 32. Rxb2 {[%emt 0:00:00]} (32. f3 $142) 32... Rxb2+ {[%emt 0:00:14]} 33. Kxb2 {[%emt 0:00:00] KP-KP} Ke5 {[%emt 0:00:13]} 34. Kc3 {[%emt 0:00:00]} Ke4 {[%emt 0:00:49]} 35. f3+ {[%emt 0:00:00]} Ke3 {[%emt 0:00:16]} 36. Kb4 {[%emt 0:00:00]} Kd4 {[%emt 0:00:09]} 37. g3 {[%emt 0:00:00]} e5 {[%emt 1:02:35] Weighted Error Value: White=0.67/Black=0.06 (flawless) .  Mistake:       	White=7     	---        Inaccurate:     	White=3     	Black=1      OK:         	White=6     	Black=13     Best:        	White=2     	Black=1      Strong:       	---       	Black=1} 0-1

[Event "76th Montenegro Championship 2024"]
[Site "Podgorica"]
[Date "2024.02.11"]
[Round "7.16"]
[White "Kadic, Branislav"]
[Black "Miletic, Vuk"]
[Result "0-1"]
[ECO "D02"]
[WhiteElo "1970"]
[BlackElo "2213"]
[Annotator "TA"]
[PlyCount "112"]
[EventDate "2024.02.06"]
[EventType "swiss"]
[EventCountry "MNE"]
[SourceTitle "playchess.com"]
[Source "ChessBase"]
[SourceQuality "1"]
[TimeControl "40/5400+30:1800+30"]

{[%evp 9,112,0,11,-16,9,7,7,-33,-21,-38,-31,-36,-24,-34,11,-37,-31,-41,-41,-94,-94,-98,-98,-92,-71,-60,-63,-67,-25,-33,-43,-54,-33,-35,-52,-43,-49,-132,-62,-128,-104,-160,-131,-181,-177,-191,-189,-197,-192,-219,-214,-272,-256,-265,-272,-248,-195,-356,-361,-356,-346,-341,-342,-378,-436,-449,-442,-433,-408,-535,-531,-990,-977,-1021,-1009,-993,-930,-908,-908,-29969,-29960,-5160,-824,-866,-616,-842,-817,-1010,-567,-5127,-5147,-1526,-1106,-1108,-1035,-29976,-29977,-29996,-29997,-29997,-29983,-29984,-29985,-29979,-666]} 1. d4 {[%emt 0:01:38]} d5 {[%emt 0:00:16]} 2. Bf4 {[%emt 0:00:09]} c5 {[%emt 0:01:45]} 3. e3 {[%emt 0:01:16]} Nc6 {[%emt 0:00:14]} 4. Nf3 {[%emt 0:00:26]} Nf6 {[%emt 0:02:05]} 5. Be2 {[%emt 0:00:25]} Qb6 {[%emt 0:02:53]} 6. b3 {[%emt 0:00:22]} Bf5 {[%emt 0:02:45]} 7. O-O {[%emt 0:05:28]} e6 {[%emt 0:00:26]} 8. c3 {[%emt 0:10:25] The position is equal.} Rc8 {[%emt 0:01:50]} 9. Ne5 {[%emt 0:03:45]} Be7 {[%emt 0:02:58]} 10. Nd2 {[%emt 0:01:03]} h6 {[%emt 0:03:15]} 11. Ndf3 {[%emt 0:02:51]} Ne4 {[%emt 0:13:20]} 12. Qe1 {[%emt 0:06:40]} (12. Rc1 $11) 12... cxd4 {[%emt 0:06:20]} 13. Nxc6 {[%emt 0:02:16]} bxc6 {[%emt 0:01:03]} 14. Nxd4 {[%emt 0:06:32]} (14. exd4 $15 Ba3 15. Bc1) 14... Bh7 $17 {[%emt 0:02:21] Black is more active.} 15. f3 {[%emt 0:12:14]} Nf6 {[%emt 0:00:20]} 16. Qd2 {[%emt 0:00:57]} Nd7 {[%emt 0:02:47] Hoping for ...e5.} 17. Bg3 {[%emt 0:03:39]} e5 {[%emt 0:10:23]} 18. Nc2 {[%emt 0:00:34]} Bxc2 {[%emt 0:01:54]} 19. Qxc2 {[%emt 0:00:02]} Bc5 {[%emt 0:00:08]} (19... Qxe3+ 20. Kh1 O-O 21. Rad1) 20. Qf5 {[%emt 0:01:59]} g6 {[%emt 0:00:45]} 21. Qh3 {[%emt 0:01:39] Threatens to win with Bxe5.} Bxe3+ {[%emt 0:06:46]} 22. Kh1 {[%emt 0:00:10] Strongly threatening Bxe5.} f5 $36 {[%emt 0:00:22][%mdl 2048] Black has good play.} 23. b4 {[%emt 0:05:39] Black continues to play with concentration.} (23. f4 $15) 23... Kf7 {[%emt 0:23:02]} (23... O-O $17 24. a4 Kg7) 24. Rad1 {[%emt 0:00:43]} (24. f4 $15 e4 25. Bh4) 24... Rce8 {[%emt 0:01:19]} 25. b5 {[%emt 0:05:04]} Nf6 {[%emt 0:00:49]} ({Much weaker is} 25... cxb5 26. Rxd5 Nf6 27. Rxb5 $11 (27. Bxe5 $2 Nxd5 28. Bxh8 Rxh8 $19) (27. Rxe5 Rxe5 28. Bxe5 Re8 $17)) 26. a4 {[%emt 0:01:43]} (26. Bh4 $17) 26... c5 $19 {[%emt 0:01:35]} 27. Bh4 {[%emt 0:08:00]} Qe6 {[%emt 0:05:40]} 28. Bxf6 {[%emt 0:02:35]} Kxf6 {[%emt 0:00:03]} 29. a5 {[%emt 0:00:57]} c4 {[%emt 0:00:21]} 30. Qh4+ {[%emt 0:01:42]} Kg7 {[%emt 0:00:16]} 31. Qe1 {[%emt 0:00:24][%cal Oe2c4]} f4 {[%emt 0:00:53] White is weak on the dark squares} 32. Rb1 {[%emt 0:01:44]} Rb8 {[%emt 0:00:46]} 33. Qd1 $2 {[%emt 0:00:56]} (33. Rb4) 33... d4 {[%emt 0:01:23]} 34. Qa4 {[%emt 0:01:00]} d3 {[%emt 0:02:27]} ({Not} 34... dxc3 35. Bxc4 Qd6 (35... Qf5 36. Qa3 $14) 36. Rb3 $17) 35. Bd1 {[%emt 0:00:11]} Rhc8 {[%emt 0:00:51]} 36. b6 {[%emt 0:05:33]} axb6 {[%emt 0:00:24]} 37. axb6 {[%emt 0:00:34]} Rxb6 {[%emt 0:00:53]} 38. Rxb6 {[%emt 0:00:17]} Bxb6 {[%emt 0:00:01]} 39. Qa6 {[%emt 0:00:35]} Qc6 {[%emt 0:01:30] aiming for ...Ra8.} 40. Ba4 {[%emt 0:00:00]} Ra8 {[%emt 0:00:00]} 41. Bxc6 {[%emt 0:02:50]} Rxa6 {[%emt 0:01:23][%mdl 4096] Endgame. KRB-KRB} 42. Bb5 {[%emt 0:00:12]} Ra3 {[%emt 0:00:12]} 43. Bxc4 {[%emt 0:00:16]} Rxc3 {[%emt 0:00:01]} 44. Bb5 {[%emt 0:00:27]} d2 {[%emt 0:00:40]} 45. Ba4 {[%emt 0:00:34] [#]} Bf2 $1 {[%emt 0:00:58][%mdl 512]} 46. Rd1 {[%emt 0:01:23]} (46. g3 fxg3) 46... Re3 {[%emt 0:09:54] ( -> ...Re1+)} 47. g4 {[%emt 0:02:15]} Be1 {[%emt 0:05:00]} 48. Kg2 {[%emt 0:01:59]} Re2+ {[%emt 0:01:58]} 49. Kg1 {[%emt 0:03:43]} e4 {[%emt 0:01:16]} 50. fxe4 {[%emt 0:01:31]} Rxe4 {[%emt 0:00:38]} 51. Bc6 {[%emt 0:00:30]} Re2 {[%emt 0:04:19]} 52. Bb5 {[%emt 0:08:18] [#]} f3 $1 {[%emt 0:01:03] Black mates.} 53. Ba4 {[%emt 0:02:59]} (53. Kf1 Rxh2) 53... Bf2+ {[%emt 0:01:15]} 54. Kf1 {[%emt 0:01:13]} Be3 {[%emt 0:00:10]} 55. Bc6 {[%emt 0:01:25]} Rxh2 {[%emt 0:00:26][%cal Rh2h1]} 56. Bxf3 {[%emt 0:00:09]} Rf2+ {[%emt 0:00:05] Weighted Error Value: White=0.48/Black=0.19 (very precise) .  Mistake:       	White=7     	Black=1      Inaccurate:     	White=3     	Black=2      OK:         	White=8     	Black=14     Best:        	White=3     	Black=2} 0-1

[Event "76th Montenegro Championship 2024"]
[Site "Podgorica"]
[Date "2024.02.11"]
[Round "7.17"]
[White "Grbovic, Dino"]
[Black "Scekic, Veljko"]
[Result "1/2-1/2"]
[ECO "D97"]
[WhiteElo "1946"]
[BlackElo "2206"]
[Annotator "RC"]
[PlyCount "37"]
[EventDate "2024.02.06"]
[EventType "swiss"]
[EventCountry "MNE"]
[SourceTitle "playchess.com"]
[Source "ChessBase"]
[SourceQuality "1"]
[TimeControl "40/5400+30:1800+30"]

1. d4 {[%emt 0:00:04]} Nf6 {[%emt 0:00:04]} 2. c4 {[%emt 0:01:16]} g6 {[%emt 0:00:04]} 3. Nc3 {[%emt 0:00:47]} d5 {[%emt 0:00:07]} 4. Nf3 {[%emt 0:00:58]} Bg7 {[%emt 0:00:10]} 5. Qb3 {[%emt 0:00:25]} dxc4 {[%emt 0:04:52]} 6. Qxc4 {[%emt 0:00:03]} c6 {[%emt 0:00:07]} 7. e4 {[%emt 0:09:42]} O-O {[%emt 0:00:37]} 8. Be2 {[%emt 0:09:13]} b5 {[%emt 0:04:02]} 9. Qd3 {[%emt 0:03:01]} Be6 {[%emt 0:00:37]} 10. O-O {[%emt 0:07:22]} Nbd7 {[%emt 0:00:43]} 11. Ng5 {[%emt 0:08:18]} Bc4 {[%emt 0:00:27]} 12. Qh3 {[%emt 0:00:37]} Bxe2 {[%emt 0:00:03]} 13. Nxe2 {[%emt 0:00:07]} h6 {[%emt 0:00:16]} 14. Nf3 {[%emt 0:01:31]} Nxe4 {[%emt 0:00:19]} 15. Bxh6 {[%emt 0:00:54]} Ndf6 {[%emt 0:00:38]} 16. Ng3 {[%emt 0:07:54]} Nxg3 {[%emt 0:03:13]} 17. hxg3 {[%emt 0:04:45]} Qc8 {[%emt 0:00:53]} 18. Bxg7 {[%emt 0:01:42]} Kxg7 {[%emt 0:01:09]} 19. Qxc8 {[%emt 0:03:08]} 1/2-1/2

[Event "76th Montenegro Championship 2024"]
[Site "Podgorica"]
[Date "2024.02.11"]
[Round "7.18"]
[White "Popovic, Mateja"]
[Black "Krstonijevic, Stjepan"]
[Result "1-0"]
[ECO "D52"]
[WhiteElo "1880"]
[BlackElo "2108"]
[Annotator "NA RC"]
[PlyCount "107"]
[EventDate "2024.02.06"]
[EventType "swiss"]
[EventCountry "MNE"]
[SourceTitle "playchess.com"]
[Source "ChessBase"]
[SourceQuality "1"]
[TimeControl "40/5400+30:1800+30"]

1. d4 {[%emt 0:00:03]} d5 {[%emt 0:04:27]} 2. c4 {[%emt 0:00:16]} e6 {[%emt 0:00:38]} 3. Nc3 {[%emt 0:00:13]} Nf6 {[%emt 0:00:07]} 4. Bg5 {[%emt 0:00:07]} c6 {[%emt 0:00:04]} 5. e3 {[%emt 0:02:51]} Nbd7 {[%emt 0:02:34]} 6. Nf3 {[%emt 0:02:10]} Qa5 {[%emt 0:04:00]} 7. cxd5 {[%emt 0:04:35]} Nxd5 {[%emt 0:01:47]} 8. Qb3 {[%emt 0:04:42]} Bb4 {[%emt 0:02:01]} 9. Rc1 {[%emt 0:01:21]} O-O {[%emt 0:00:56] D52: Queen's Gambit Declined: Cambridge Springs Variation.} 10. a3 {[%emt 0:02:53]} Bd6 {[%emt 0:01:33]} 11. Bd3 {[%emt 0:01:22]} e5 {[%emt 0:03:55]} 12. O-O {[%emt 0:05:21]} Nxc3 {[%emt 0:04:28]} 13. Rxc3 {[%emt 0:02:04]} Qc7 {[%emt 0:01:54]} 14. d5 {[%emt 0:07:59]} Nc5 {[%emt 0:10:38]} 15. Qc2 {[%emt 0:00:22]} Nxd3 {[%emt 0:04:14]} 16. Qxd3 {[%emt 0:00:37]} c5 {[%emt 0:01:30]} 17. b4 {[%emt 0:04:03]} b6 {[%emt 0:01:29]} 18. e4 {[%emt 0:03:21]} a5 {[%emt 0:04:13]} 19. Rfc1 {[%emt 0:00:42]} axb4 {[%emt 0:02:43]} 20. axb4 {[%emt 0:00:07]} Ba6 {[%emt 0:00:08]} 21. b5 {[%emt 0:01:55]} Bc8 {[%emt 0:02:08]} 22. Nd2 {[%emt 0:00:49]} Bd7 $14 {[%emt 0:02:08]} 23. Rb3 {[%emt 0:05:11]} h6 {[%emt 0:01:28]} 24. Be3 {[%emt 0:01:00]} f5 {[%emt 0:15:05]} 25. Nc4 {[%emt 0:09:56]} f4 {[%emt 0:09:34]} 26. Bd2 {[%emt 0:00:15]} g5 {[%emt 0:00:51]} 27. Bc3 {[%emt 0:01:59]} Ra4 {[%emt 0:03:48]} 28. Bxe5 {[%emt 0:02:41]} Bxe5 {[%emt 0:01:54]} 29. d6 {[%emt 0:00:08]} Bxd6 {[%emt 0:00:48]} 30. Qd5+ {[%emt 0:00:45]} Kg7 {[%emt 0:02:35]} 31. Nxd6 {[%emt 0:00:20]} Rf6 {[%emt 0:02:51]} 32. e5 {[%emt 0:05:15]} Re6 {[%emt 0:00:58]} 33. h4 {[%emt 0:01:57]} Re7 {[%emt 0:00:26]} 34. hxg5 {[%emt 0:03:32]} Be6 {[%emt 0:01:39]} 35. gxh6+ {[%emt 0:05:51]} Kh8 {[%emt 0:00:40]} 36. Qd1 {[%emt 0:03:43]} Bxb3 {[%emt 0:02:11]} 37. Qxb3 {[%emt 0:00:05]} Ra8 {[%emt 0:05:24]} 38. Qd5 {[%emt 0:02:53]} Rd8 {[%emt 0:01:06]} 39. Rd1 {[%emt 0:01:02]} Qd7 {[%emt 0:00:33]} 40. Qc4 {[%emt 0:00:00]} Qc7 {[%emt 0:00:00]} 41. Qxf4 {[%emt 0:03:20]} Rg8 {[%emt 0:02:15]} 42. e6 {[%emt 0:03:46]} Kh7 {[%emt 0:01:49]} 43. Qf5+ {[%emt 0:02:39]} Rg6 {[%emt 0:00:29]} 44. Nf7 {[%emt 0:00:40]} Qb7 {[%emt 0:00:50]} 45. f3 {[%emt 0:00:56]} Qa8 {[%emt 0:01:50]} 46. Rd8 {[%emt 0:00:42]} Qa1+ {[%emt 0:00:03]} 47. Kh2 {[%emt 0:00:11]} Rxf7 {[%emt 0:00:15]} 48. Qxf7+ {[%emt 0:00:23]} Kxh6 {[%emt 0:00:07]} 49. Qf4+ {[%emt 0:01:50]} Kh7 {[%emt 0:00:32]} 50. Rd7+ {[%emt 0:01:20]} Rg7 {[%emt 0:00:57]} 51. Qf5+ {[%emt 0:00:37]} Kh6 {[%emt 0:00:29]} 52. Rd5 {[%emt 0:00:28]} Rg6 {[%emt 0:00:48]} 53. Qh5+ {[%emt 0:01:22]} Kg7 {[%emt 0:00:29]} 54. Rd7+ {[%emt 0:00:04]} 1-0

[Event "76th Montenegro Championship 2024"]
[Site "Podgorica"]
[Date "2024.02.12"]
[Round "8.1"]
[White "Petrov, Nikita"]
[Black "Draskovic, Luka"]
[Result "1/2-1/2"]
[ECO "D31"]
[WhiteElo "2563"]
[BlackElo "2481"]
[Annotator "TA"]
[PlyCount "61"]
[EventDate "2024.02.06"]
[EventType "swiss"]
[EventCountry "MNE"]
[SourceTitle "playchess.com"]
[Source "ChessBase"]
[SourceQuality "1"]
[TimeControl "40/5400+30:1800+30"]

{[%evp 9,61,12,18,20,25,22,24,29,28,18,29,13,19,14,14,18,9,15,29,8,21,14,18,0,14,14,18,9,8,6,11,0,22,7,37,37,37,38,44,32,43,32,32,32,36,25,31,25,31,24,22,22,35,37]} 1. d4 {[%emt 0:00:28]} d5 {[%emt 0:00:18]} 2. c4 {[%emt 0:00:40]} e6 {[%emt 0:00:09]} 3. Nc3 {[%emt 0:00:16]} h6 {[%emt 0:00:55]} 4. cxd5 {[%emt 0:01:33]} exd5 {[%emt 0:00:22]} 5. Bf4 {[%emt 0:00:07]} Nf6 {[%emt 0:02:54]} 6. e3 {[%emt 0:00:30]} Bd6 {[%emt 0:00:05]} 7. Bxd6 {[%emt 0:00:34]} Qxd6 {[%emt 0:00:09]} 8. Bd3 {[%emt 0:00:08] White has an edge.} O-O {[%emt 0:01:14]} 9. Nge2 {[%emt 0:00:22]} a6 {[%emt 0:00:49]} 10. Nf4 {[%emt 0:09:01]} Nc6 {[%emt 0:04:28]} 11. Qf3 {[%emt 0:05:44]} Ne7 {[%emt 0:16:12]} 12. h3 {[%emt 0:03:33]} Bd7 {[%emt 0:07:01]} 13. O-O {[%emt 0:13:01]} Rac8 {[%emt 0:03:49]} 14. Rad1 {[%emt 0:01:49]} Rfe8 {[%emt 0:01:49]} 15. Bb1 {[%emt 0:09:04]} Rcd8 {[%emt 0:06:57]} 16. g4 {[%emt 0:04:02]} Bc8 {[%emt 0:05:46]} 17. Qg3 {[%emt 0:04:05]} Ng6 {[%emt 0:07:18]} 18. Rfe1 {[%emt 0:06:22]} Nxf4 {[%emt 0:00:45]} 19. exf4 {[%emt 0:02:23]} c6 {[%emt 0:19:47]} (19... Qb6 {looks sharper.} 20. g5 Ne4 21. Nxe4 dxe4 22. Bxe4 hxg5 23. fxg5 Rxd4 24. Rxd4 Qxd4 25. Bh7+ Kf8) 20. a3 {[%emt 0:04:57]} Nd7 {[%emt 0:02:25]} 21. Kg2 {[%emt 0:03:51]} Nf8 {[%emt 0:02:13]} 22. f5 {[%emt 0:01:43] [#] Black must now prevent Qxd6.} Qxg3+ {[%emt 0:00:58]} 23. Kxg3 {[%emt 0:00:04]} Nd7 {[%emt 0:06:16]} 24. h4 {[%emt 0:02:04]} Nb6 {[%emt 0:00:51][%cal Oh6h5]} 25. b3 {[%emt 0:01:45]} Bd7 {[%emt 0:00:04]} 26. Kf4 {[%emt 0:04:42]} Rxe1 {[%emt 0:00:14]} 27. Rxe1 {[%emt 0:00:04]} f6 {[%emt 0:00:33]} 28. Re3 {[%emt 0:04:10]} Kf7 {[%emt 0:01:00]} 29. Ne2 {[%emt 0:01:28]} Nc8 {[%emt 0:00:44]} 30. Bd3 {[%emt 0:01:37]} a5 {[%emt 0:00:20]} 31. Nc3 {[%emt 0:03:37] Weighted Error Value: White=0.07 (flawless) /Black=0.05 (flawless) .  Inaccurate:     	---       	Black=1      OK:         	White=6     	Black=12} 1/2-1/2

[Event "76th Montenegro Championship 2024"]
[Site "Podgorica"]
[Date "2024.02.12"]
[Round "8.2"]
[White "Vukcevic, Nemanja"]
[Black "Djukic, Nikola"]
[Result "0-1"]
[ECO "B51"]
[WhiteElo "2275"]
[BlackElo "2529"]
[Annotator "RC"]
[PlyCount "178"]
[EventDate "2024.02.06"]
[EventType "swiss"]
[EventCountry "MNE"]
[SourceTitle "playchess.com"]
[Source "ChessBase"]
[SourceQuality "1"]
[TimeControl "40/5400+30:1800+30"]

1. e4 {[%emt 0:01:19]} c5 {[%emt 0:10:17]} 2. Nf3 {[%emt 0:00:07]} Nc6 {[%emt 0:00:05]} 3. Bb5 {[%emt 0:00:08]} d6 {[%emt 0:04:37]} 4. O-O {[%emt 0:04:39]} Bd7 {[%emt 0:00:05]} 5. Re1 {[%emt 0:03:10]} a6 {[%emt 0:00:07]} 6. Bf1 {[%emt 0:02:01]} Bg4 {[%emt 0:01:11]} 7. h3 {[%emt 0:05:27]} Bxf3 {[%emt 0:00:08]} 8. Qxf3 {[%emt 0:00:11]} g6 {[%emt 0:01:54]} 9. c3 {[%emt 0:04:38]} Bg7 {[%emt 0:00:06]} 10. Na3 {[%emt 0:04:06]} e6 {[%emt 0:01:44]} 11. d3 {[%emt 0:07:59]} Nge7 {[%emt 0:00:07]} 12. Nc2 {[%emt 0:10:26]} O-O {[%emt 0:00:57]} 13. Qd1 {[%emt 0:07:24]} e5 {[%emt 0:26:25]} 14. Be3 {[%emt 0:05:40]} f5 {[%emt 0:01:46]} 15. f3 {[%emt 0:03:10]} Kh8 {[%emt 0:01:10]} 16. d4 {[%emt 0:05:04]} cxd4 {[%emt 0:01:01]} 17. cxd4 {[%emt 0:00:12]} fxe4 {[%emt 0:12:14]} 18. d5 {[%emt 0:08:11]} Nd4 {[%emt 0:00:07]} 19. fxe4 {[%emt 0:01:56]} Qb6 {[%emt 0:04:09]} 20. Rb1 {[%emt 0:04:58]} Rac8 {[%emt 0:00:55]} 21. Bd3 {[%emt 0:00:24]} Bh6 {[%emt 0:02:31]} 22. Bxd4 {[%emt 0:05:19]} exd4 {[%emt 0:00:20]} 23. Kh1 {[%emt 0:01:59]} Bg7 {[%emt 0:06:21]} 24. Qd2 {[%emt 0:01:09]} Ng8 {[%emt 0:01:16]} 25. Qb4 {[%emt 0:01:43]} Qxb4 {[%emt 0:08:04]} 26. Nxb4 {[%emt 0:00:04]} Nh6 {[%emt 0:00:07]} 27. Rbc1 {[%emt 0:04:05]} Nf7 {[%emt 0:00:10]} 28. Rxc8 {[%emt 0:00:17]} Rxc8 {[%emt 0:00:05]} 29. Bb1 {[%emt 0:00:28]} Ne5 {[%emt 0:02:08]} 30. Nd3 {[%emt 0:00:24]} Rf8 {[%emt 0:00:14]} 31. Nxe5 {[%emt 0:02:30]} Bxe5 {[%emt 0:00:06]} 32. Kg1 {[%emt 0:00:51]} d3 {[%emt 0:06:10]} 33. Bxd3 {[%emt 0:00:36]} Bxb2 {[%emt 0:00:04]} 34. Rf1 {[%emt 0:01:29]} Bd4+ {[%emt 0:00:06]} 35. Kh2 {[%emt 0:00:26]} Rc8 {[%emt 0:01:11]} 36. Rb1 {[%emt 0:01:34]} b5 {[%emt 0:00:17]} 37. Kg3 {[%emt 0:00:29]} Kg7 {[%emt 0:00:49]} 38. Rb3 {[%emt 0:01:06]} h5 {[%emt 0:04:13]} 39. e5 {[%emt 0:02:24]} Rf8 {[%emt 0:02:11]} 40. Kh2 {[%emt 0:00:00]} Bxe5+ {[%emt 0:00:00]} 41. Kg1 {[%emt 0:02:06]} Rf4 {[%emt 0:03:26]} 42. Ra3 {[%emt 0:03:05]} h4 {[%emt 0:15:41]} 43. Rxa6 {[%emt 0:01:58]} b4 {[%emt 0:00:27]} 44. Ra7+ {[%emt 0:04:12]} Kh6 {[%emt 0:00:28]} 45. Rb7 {[%emt 0:04:58]} Bd4+ {[%emt 0:01:55]} 46. Kh2 {[%emt 0:01:18]} Bf2 {[%emt 0:01:01]} 47. Bf1 {[%emt 0:09:00]} Rd4 {[%emt 0:02:19]} 48. Rf7 {[%emt 0:00:21]} Bg3+ {[%emt 0:02:23]} 49. Kg1 {[%emt 0:00:03]} Rxd5 {[%emt 0:01:13]} 50. Rf3 {[%emt 0:01:04]} Ra5 {[%emt 0:02:29]} 51. Bc4 {[%emt 0:01:40]} Rc5 {[%emt 0:00:10]} 52. Bb3 {[%emt 0:00:22]} Re5 {[%emt 0:01:35]} 53. Bc4 {[%emt 0:01:15]} d5 {[%emt 0:00:49]} 54. Bf1 {[%emt 0:00:14]} d4 {[%emt 0:02:16]} 55. Rb3 {[%emt 0:02:32]} Ra5 {[%emt 0:01:51]} 56. Rxb4 {[%emt 0:01:02]} Rxa2 {[%emt 0:00:05]} 57. Rb1 {[%emt 0:03:30]} Rd2 {[%emt 0:00:05]} 58. Bc4 {[%emt 0:01:09]} Kg5 {[%emt 0:02:43]} 59. Rf1 {[%emt 0:00:31]} Bf4 {[%emt 0:00:11]} 60. Rf3 {[%emt 0:01:29]} Rc2 {[%emt 0:00:41]} 61. Bd3 {[%emt 0:00:13]} Be3+ {[%emt 0:01:09]} 62. Kh2 {[%emt 0:00:50]} Rd2 {[%emt 0:00:29]} 63. Bf1 {[%emt 0:00:02]} Kh6 {[%emt 0:00:52]} 64. Kh1 {[%emt 0:00:19]} Bf2 {[%emt 0:00:39]} 65. Rd3 {[%emt 0:00:29]} Ra2 {[%emt 0:00:11]} 66. Rf3 {[%emt 0:00:27]} Kg7 {[%emt 0:00:40]} 67. Kh2 {[%emt 0:00:18]} g5 {[%emt 0:00:20]} 68. Kh1 {[%emt 0:00:16]} Bg3 {[%emt 0:00:26]} 69. Bc4 {[%emt 0:00:57]} Ra4 {[%emt 0:00:18]} 70. Bd3 {[%emt 0:00:39]} Bf4 {[%emt 0:00:15]} 71. Kg1 {[%emt 0:00:27]} Be3+ {[%emt 0:00:10]} 72. Kh2 {[%emt 0:00:08]} Ra3 {[%emt 0:00:31]} 73. Bf1 {[%emt 0:00:05]} Bf4+ {[%emt 0:00:28]} 74. Kg1 {[%emt 0:00:08]} Ra1 {[%emt 0:01:22]} 75. Kf2 {[%emt 0:00:30]} Kf6 {[%emt 0:00:10]} 76. Ke2 {[%emt 0:00:51]} Ke5 {[%emt 0:00:04]} 77. Kd3 {[%emt 0:00:54]} Kd5 {[%emt 0:00:05]} 78. Kc2 {[%emt 0:00:17]} Kc5 {[%emt 0:02:09]} 79. Kb2 {[%emt 0:00:49]} Re1 {[%emt 0:00:07]} 80. Kc2 {[%emt 0:00:08]} Kb4 {[%emt 0:01:05]} 81. Rb3+ {[%emt 0:00:04]} Ka4 {[%emt 0:00:07]} 82. Rf3 {[%emt 0:00:10]} Be3 {[%emt 0:00:06]} 83. Rf8 {[%emt 0:00:54]} Bf4 {[%emt 0:00:09]} 84. Bd3 {[%emt 0:00:43]} Rc1+ {[%emt 0:00:24]} 85. Kb2 {[%emt 0:00:04]} Rc3 {[%emt 0:00:39]} 86. Bc2+ {[%emt 0:01:10]} Kb4 {[%emt 0:00:10]} 87. Rd8 {[%emt 0:00:14]} Be5 {[%emt 0:00:26]} 88. Kc1 {[%emt 0:01:33]} Rg3 {[%emt 0:00:12]} 89. Be4 {[%emt 0:00:29]} Re3 {[%emt 0:00:05]} 0-1